[Event "Early-Titled-Tuesday-Blitz-May-28-2024"]
[Site "Chess.com"]
[Date "2024.05.28"]
[Round "6"]
[White "Balla_Tamas"]
[Black "ZachHKL"]
[Result "0-1"]
[WhiteElo "2467"]
[BlackElo "2354"]
[TimeControl "180+1"]
[EndTime "9:05:53 PDT"]
[Termination "ZachHKL won by resignation"]

1. Nf3 {[%clk 0:03:00.9]} 1... d5 {[%clk 0:02:58.9]} 2. b3 {[%clk 0:03:00.7]}
2... Nf6 {[%clk 0:02:58]} 3. Bb2 {[%clk 0:03:00.3]} 3... g6 {[%clk 0:02:58.5]}
4. e3 {[%clk 0:03:00.3]} 4... Bg7 {[%clk 0:02:59]} 5. c4 {[%clk 0:03:00.4]} 5...
c6 {[%clk 0:02:58.4]} 6. Nc3 {[%clk 0:02:59.3]} 6... O-O {[%clk 0:02:58.8]} 7.
d4 {[%clk 0:02:58.4]} 7... Bf5 {[%clk 0:02:59.1]} 8. Bd3 {[%clk 0:02:54.1]} 8...
Bxd3 {[%clk 0:02:58.9]} 9. Qxd3 {[%clk 0:02:55]} 9... Nbd7 {[%clk 0:02:59.4]}
10. O-O {[%clk 0:02:54.3]} 10... e6 {[%clk 0:02:59.2]} 11. e4 {[%clk 0:02:54.4]}
11... dxe4 {[%clk 0:02:55.9]} 12. Nxe4 {[%clk 0:02:55.3]} 12... Nxe4 {[%clk
0:02:56.5]} 13. Qxe4 {[%clk 0:02:55.2]} 13... c5 {[%clk 0:02:52.9]} 14. Rad1
{[%clk 0:02:50.5]} 14... Qc7 {[%clk 0:02:51.7]} 15. Qe2 {[%clk 0:02:35.7]} 15...
cxd4 {[%clk 0:02:49.9]} 16. Nxd4 {[%clk 0:02:35.6]} 16... a6 {[%clk 0:02:50.1]}
17. Ba3 {[%clk 0:01:54.5]} 17... Rfe8 {[%clk 0:02:43.7]} 18. Rfe1 {[%clk
0:01:48.6]} 18... Rad8 {[%clk 0:02:29.6]} 19. Qf3 {[%clk 0:01:44]} 19... Ne5
{[%clk 0:02:25]} 20. Qe4 {[%clk 0:01:39]} 20... Nc6 {[%clk 0:01:52.1]} 21. Nf3
{[%clk 0:01:26.3]} 21... f5 {[%clk 0:01:39.1]} 22. Qh4 {[%clk 0:01:19]} 22... e5
{[%clk 0:01:32.9]} 23. h3 {[%clk 0:01:18.2]} 23... e4 {[%clk 0:01:29.1]} 24. Bd6
{[%clk 0:00:32.5]} 24... Rxd6 {[%clk 0:01:21]} 25. Ng5 {[%clk 0:00:24.9]} 25...
h6 {[%clk 0:01:16.8]} 26. Qg3 {[%clk 0:00:10.2]} 26... Rxd1 {[%clk 0:01:11.3]}
27. Qxc7 {[%clk 0:00:09.8]} 27... Rxe1+ {[%clk 0:01:11]} 28. Kh2 {[%clk
0:00:10.4]} 28... Be5+ {[%clk 0:01:11.7]} 0-1

[Event "Early-Titled-Tuesday-Blitz-May-28-2024"]
[Site "Chess.com"]
[Date "2024.05.28"]
[Round "6"]
[White "Daaksboy"]
[Black "alreadybroken23"]
[Result "1-0"]
[WhiteElo "2478"]
[BlackElo "2601"]
[TimeControl "180+1"]
[EndTime "9:05:54 PDT"]
[Termination "Daaksboy won by resignation"]

1. d4 {[%clk 0:03:00.9]} 1... Nf6 {[%clk 0:02:56]} 2. c4 {[%clk 0:03:00.4]} 2...
g6 {[%clk 0:02:56.5]} 3. Nc3 {[%clk 0:03:00.4]} 3... Bg7 {[%clk 0:02:56.9]} 4.
e4 {[%clk 0:03:00.5]} 4... d6 {[%clk 0:02:57.4]} 5. Be2 {[%clk 0:03:00.7]} 5...
O-O {[%clk 0:02:57.9]} 6. h4 {[%clk 0:03:01]} 6... c5 {[%clk 0:02:54.1]} 7. d5
{[%clk 0:03:00.9]} 7... e6 {[%clk 0:02:54.5]} 8. h5 {[%clk 0:03:00.6]} 8... exd5
{[%clk 0:02:55]} 9. exd5 {[%clk 0:03:01]} 9... Re8 {[%clk 0:02:55.1]} 10. h6
{[%clk 0:03:01.4]} 10... Bh8 {[%clk 0:02:55.1]} 11. Bg5 {[%clk 0:03:02.1]} 11...
Qb6 {[%clk 0:02:53.9]} 12. b3 {[%clk 0:03:02.3]} 12... Ng4 {[%clk 0:02:44.1]}
13. Rc1 {[%clk 0:02:50.6]} 13... Bd4 {[%clk 0:02:39.5]} 14. Nh3 {[%clk
0:02:39.1]} 14... Qa5 {[%clk 0:02:32.6]} 15. Bd2 {[%clk 0:02:37.2]} 15... Qd8
{[%clk 0:02:32.2]} 16. Kf1 {[%clk 0:02:31.8]} 16... Qd7 {[%clk 0:01:50.1]} 17.
Bf3 {[%clk 0:02:04.2]} 17... Qf5 {[%clk 0:01:48.8]} 18. Nb5 {[%clk 0:01:49.4]}
18... Be5 {[%clk 0:01:29.4]} 19. Nc7 {[%clk 0:01:43]} 19... Nh2+ {[%clk
0:01:24]} 20. Rxh2 {[%clk 0:01:38.6]} 20... Bxh2 {[%clk 0:01:24.9]} 21. Nxe8
{[%clk 0:01:34.5]} 21... Na6 {[%clk 0:00:42.2]} 22. Bc3 {[%clk 0:01:31.4]} 22...
Be5 {[%clk 0:00:35.1]} 23. Bxe5 {[%clk 0:01:25.7]} 23... Qxe5 {[%clk 0:00:35]}
24. Qe2 {[%clk 0:01:22.9]} 24... Bxh3 {[%clk 0:00:31.4]} 25. Qxe5 {[%clk
0:01:22.3]} 25... dxe5 {[%clk 0:00:31.8]} 26. Nf6+ {[%clk 0:01:21.9]} 26... Kf8
{[%clk 0:00:24.3]} 27. gxh3 {[%clk 0:01:22.8]} 27... Ke7 {[%clk 0:00:25]} 28.
Ne4 {[%clk 0:01:15.5]} 28... f5 {[%clk 0:00:24.9]} 29. d6+ {[%clk 0:01:12.8]}
29... Ke6 {[%clk 0:00:22.8]} 30. Ng5+ {[%clk 0:01:12.8]} 30... Kxd6 {[%clk
0:00:23.3]} 31. Bxb7 {[%clk 0:01:12.8]} 1-0

[Event "Early-Titled-Tuesday-Blitz-May-28-2024"]
[Site "Chess.com"]
[Date "2024.05.28"]
[Round "6"]
[White "Chessbard1972"]
[Black "jamesaltucher"]
[Result "1-0"]
[WhiteElo "2411"]
[BlackElo "2060"]
[TimeControl "180+1"]
[EndTime "9:06:00 PDT"]
[Termination "Chessbard1972 won on time"]

1. e4 {[%clk 0:02:59.6]} 1... e6 {[%clk 0:02:54.7]} 2. d4 {[%clk 0:02:55.7]}
2... d5 {[%clk 0:02:54.7]} 3. e5 {[%clk 0:02:56.3]} 3... Bd7 {[%clk 0:02:54.4]}
4. Nf3 {[%clk 0:02:53.4]} 4... a6 {[%clk 0:02:54.8]} 5. a4 {[%clk 0:02:51.4]}
5... c5 {[%clk 0:02:55.1]} 6. dxc5 {[%clk 0:02:49.7]} 6... Bxc5 {[%clk
0:02:54.6]} 7. Bd3 {[%clk 0:02:49.2]} 7... Nc6 {[%clk 0:02:54]} 8. c3 {[%clk
0:02:47.8]} 8... Qc7 {[%clk 0:02:43.3]} 9. Bf4 {[%clk 0:02:45.1]} 9... Nge7
{[%clk 0:02:33]} 10. Bg3 {[%clk 0:02:44]} 10... Ng6 {[%clk 0:02:23.4]} 11. Qe2
{[%clk 0:02:42.9]} 11... Ba7 {[%clk 0:02:05.3]} 12. O-O {[%clk 0:02:42]} 12...
Bb8 {[%clk 0:02:03.7]} 13. Re1 {[%clk 0:02:40]} 13... O-O {[%clk 0:02:01.4]} 14.
Nbd2 {[%clk 0:02:38.7]} 14... Ba7 {[%clk 0:01:57.9]} 15. h4 {[%clk 0:02:37.6]}
15... d4 {[%clk 0:01:55]} 16. h5 {[%clk 0:02:34]} 16... Nge7 {[%clk 0:01:53]}
17. cxd4 {[%clk 0:02:25.9]} 17... Nxd4 {[%clk 0:01:52.6]} 18. Nxd4 {[%clk
0:02:25.8]} 18... Bxd4 {[%clk 0:01:52.9]} 19. Nf3 {[%clk 0:02:21.7]} 19... Ba7
{[%clk 0:01:47.6]} 20. h6 {[%clk 0:02:16.8]} 20... g6 {[%clk 0:01:39.6]} 21. Qd2
{[%clk 0:02:07.3]} 21... f6 {[%clk 0:01:16.4]} 22. Bh4 {[%clk 0:01:51.2]} 22...
Nd5 {[%clk 0:01:00.9]} 23. Rac1 {[%clk 0:01:42.8]} 23... Qd8 {[%clk 0:00:52.7]}
24. b3 {[%clk 0:01:38.5]} 24... Rc8 {[%clk 0:00:42.1]} 25. exf6 {[%clk
0:01:36.4]} 25... Nxf6 {[%clk 0:00:38.8]} 26. Ne5 {[%clk 0:01:33.5]} 26... Rxc1
{[%clk 0:00:38]} 27. Qxc1 {[%clk 0:01:28.1]} 27... Qe7 {[%clk 0:00:18.4]} 28.
Ng4 {[%clk 0:01:23.4]} 28... Rc8 {[%clk 0:00:11.7]} 29. Nxf6+ {[%clk 0:01:16.8]}
29... Kf7 {[%clk 0:00:10.5]} 30. Qf4 {[%clk 0:01:15.9]} 1-0

[Event "Early-Titled-Tuesday-Blitz-May-28-2024"]
[Site "Chess.com"]
[Date "2024.05.28"]
[Round "6"]
[White "NikitaShnadrygin"]
[Black "Kumi29"]
[Result "0-1"]
[WhiteElo "2774"]
[BlackElo "2582"]
[TimeControl "180+1"]
[EndTime "9:06:05 PDT"]
[Termination "Kumi29 won by resignation"]

1. e4 {[%clk 0:03:00.9]} 1... e5 {[%clk 0:02:48.1]} 2. Nc3 {[%clk 0:02:59.6]}
2... Nf6 {[%clk 0:02:47.7]} 3. f4 {[%clk 0:03:00.1]} 3... d5 {[%clk 0:02:47.4]}
4. fxe5 {[%clk 0:03:00.3]} 4... Nxe4 {[%clk 0:02:47.4]} 5. Qf3 {[%clk
0:03:00.8]} 5... f5 {[%clk 0:02:47.1]} 6. d3 {[%clk 0:03:00.8]} 6... Nxc3 {[%clk
0:02:45.4]} 7. bxc3 {[%clk 0:03:01.7]} 7... d4 {[%clk 0:02:41.6]} 8. Qg3 {[%clk
0:03:01.8]} 8... Nc6 {[%clk 0:02:34.1]} 9. Be2 {[%clk 0:03:01.8]} 9... dxc3
{[%clk 0:02:30.7]} 10. Bh5+ {[%clk 0:02:59.7]} 10... g6 {[%clk 0:02:10.1]} 11.
Bxg6+ {[%clk 0:02:59.6]} 11... hxg6 {[%clk 0:02:10.8]} 12. Qxg6+ {[%clk
0:03:00.2]} 12... Kd7 {[%clk 0:02:11.5]} 13. Qxf5+ {[%clk 0:02:50]} 13... Ke8
{[%clk 0:02:09.9]} 14. Qg6+ {[%clk 0:02:50.3]} 14... Kd7 {[%clk 0:02:10.3]} 15.
e6+ {[%clk 0:02:50.1]} 15... Kd6 {[%clk 0:02:02.3]} 16. e7+ {[%clk 0:02:50.3]}
16... Kxe7 {[%clk 0:01:56.5]} 17. Bg5+ {[%clk 0:02:50.3]} 17... Kd7 {[%clk
0:01:56.4]} 18. Qf5+ {[%clk 0:02:48.7]} 18... Kd6 {[%clk 0:01:44]} 19. Bxd8
{[%clk 0:02:43.5]} 19... Bxf5 {[%clk 0:01:43.4]} 20. Bf6 {[%clk 0:02:29.2]}
20... Re8+ {[%clk 0:01:42.6]} 21. Kf1 {[%clk 0:02:28.4]} 21... Rg8 {[%clk
0:01:28.5]} 22. Bxc3 {[%clk 0:02:28]} 22... Bg7 {[%clk 0:01:21.8]} 23. Bxg7
{[%clk 0:02:25.5]} 23... Rxg7 {[%clk 0:01:22.4]} 24. Nf3 {[%clk 0:02:25.8]}
24... Bg4 {[%clk 0:01:16.8]} 25. Kf2 {[%clk 0:02:22.8]} 25... Bxf3 {[%clk
0:01:15.8]} 26. gxf3 {[%clk 0:02:23.7]} 26... Rf7 {[%clk 0:01:12.6]} 27. Rae1
{[%clk 0:02:21]} 27... Ref8 {[%clk 0:01:11.2]} 28. Re3 {[%clk 0:02:17.9]} 28...
Nd4 {[%clk 0:01:09.8]} 29. c3 {[%clk 0:02:18.4]} 29... Nxf3 {[%clk 0:01:07.1]}
30. Ke2 {[%clk 0:02:17]} 30... Ne5 {[%clk 0:01:04.9]} 31. Kd2 {[%clk 0:02:16.2]}
31... Rf2+ {[%clk 0:01:03.6]} 32. Re2 {[%clk 0:02:16.8]} 32... Rxe2+ {[%clk
0:00:38.3]} 33. Kxe2 {[%clk 0:02:17.7]} 33... Ke6 {[%clk 0:00:36.1]} 34. h4
{[%clk 0:02:17.7]} 34... Ng4 {[%clk 0:00:35]} 35. Rg1 {[%clk 0:02:15.4]} 35...
Nf6 {[%clk 0:00:31.1]} 36. Rg7 {[%clk 0:02:12.8]} 36... Kd6 {[%clk 0:00:30.5]}
37. Rg6 {[%clk 0:02:11.1]} 37... Ke6 {[%clk 0:00:25.7]} 38. Rg7 {[%clk
0:02:11.3]} 38... Rf7 {[%clk 0:00:24.5]} 39. Rg1 {[%clk 0:02:11.3]} 39... Rh7
{[%clk 0:00:24.2]} 40. Rh1 {[%clk 0:02:11.9]} 40... Ke5 {[%clk 0:00:22.2]} 41.
Kf3 {[%clk 0:02:06.5]} 41... Kf5 {[%clk 0:00:21.9]} 42. c4 {[%clk 0:02:03.8]}
42... c5 {[%clk 0:00:22]} 43. a4 {[%clk 0:02:01.5]} 43... b6 {[%clk 0:00:20.4]}
44. a5 {[%clk 0:02:01.4]} 44... Rd7 {[%clk 0:00:18.3]} 45. Ke2 {[%clk
0:01:59.7]} 45... Nh5 {[%clk 0:00:16]} 46. Rf1+ {[%clk 0:01:57.6]} 46... Nf4+
{[%clk 0:00:15.8]} 47. Ke3 {[%clk 0:01:58.3]} 47... Rxd3+ {[%clk 0:00:15.8]} 48.
Kf2 {[%clk 0:01:58.4]} 48... Rh3 {[%clk 0:00:15.9]} 49. axb6 {[%clk 0:01:57.7]}
49... axb6 {[%clk 0:00:16.5]} 50. Rb1 {[%clk 0:01:57.9]} 50... Rxh4 {[%clk
0:00:15.4]} 51. Ke3 {[%clk 0:01:56.1]} 51... Ke5 {[%clk 0:00:14.5]} 52. Kd2
{[%clk 0:01:57]} 52... Kd4 {[%clk 0:00:14.3]} 53. Rxb6 {[%clk 0:01:57.6]} 53...
Kxc4 {[%clk 0:00:14.6]} 54. Ke3 {[%clk 0:01:57.8]} 54... Nd5+ {[%clk 0:00:14.8]}
0-1

[Event "Early-Titled-Tuesday-Blitz-May-28-2024"]
[Site "Chess.com"]
[Date "2024.05.28"]
[Round "6"]
[White "Giantgoogachess"]
[Black "bazar-wokzal"]
[Result "1/2-1/2"]
[WhiteElo "2373"]
[BlackElo "2584"]
[TimeControl "180+1"]
[EndTime "9:06:12 PDT"]
[Termination "Game drawn by repetition"]

1. d4 {[%clk 0:03:00.9]} 1... Nf6 {[%clk 0:02:57.7]} 2. c4 {[%clk 0:02:50.8]}
2... Nc6 {[%clk 0:02:56.9]} 3. Nf3 {[%clk 0:02:25.4]} 3... e6 {[%clk 0:02:56.8]}
4. a3 {[%clk 0:02:25.3]} 4... g6 {[%clk 0:02:56.8]} 5. Nc3 {[%clk 0:02:25.6]}
5... Bg7 {[%clk 0:02:57.1]} 6. e4 {[%clk 0:02:26.1]} 6... d6 {[%clk 0:02:57.7]}
7. Be2 {[%clk 0:02:26.5]} 7... e5 {[%clk 0:02:57.5]} 8. d5 {[%clk 0:02:25.1]}
8... Ne7 {[%clk 0:02:56.8]} 9. O-O {[%clk 0:02:24.1]} 9... O-O {[%clk
0:02:57.1]} 10. Ne1 {[%clk 0:02:23.8]} 10... Kh8 {[%clk 0:02:56.5]} 11. Nd3
{[%clk 0:02:24.1]} 11... Nfg8 {[%clk 0:02:56.1]} 12. b4 {[%clk 0:02:21.6]} 12...
f5 {[%clk 0:02:56.3]} 13. f3 {[%clk 0:02:22.3]} 13... Bh6 {[%clk 0:02:49.3]} 14.
c5 {[%clk 0:02:17.3]} 14... Bxc1 {[%clk 0:02:46.8]} 15. Qxc1 {[%clk 0:02:18.2]}
15... f4 {[%clk 0:02:44.7]} 16. cxd6 {[%clk 0:02:14.2]} 16... cxd6 {[%clk
0:02:44.6]} 17. Kh1 {[%clk 0:02:03.4]} 17... Nf6 {[%clk 0:02:43.4]} 18. Nb5
{[%clk 0:02:03.1]} 18... g5 {[%clk 0:02:41]} 19. Qc7 {[%clk 0:02:01.9]} 19...
Qxc7 {[%clk 0:02:39.4]} 20. Nxc7 {[%clk 0:02:01.2]} 20... Rb8 {[%clk 0:02:39.8]}
21. Nb5 {[%clk 0:01:58.8]} 21... Ne8 {[%clk 0:02:32.3]} 22. Nxa7 {[%clk
0:01:45.2]} 22... Bd7 {[%clk 0:02:32.5]} 23. Nb2 {[%clk 0:01:44.2]} 23... h5
{[%clk 0:01:57.3]} 24. Rfc1 {[%clk 0:01:37.4]} 24... g4 {[%clk 0:01:56.9]} 25.
Bb5 {[%clk 0:01:35.5]} 25... Rd8 {[%clk 0:01:49]} 26. Bxd7 {[%clk 0:01:33.1]}
26... Rxd7 {[%clk 0:01:49]} 27. Nc8 {[%clk 0:01:29.3]} 27... gxf3 {[%clk
0:01:45.1]} 28. gxf3 {[%clk 0:01:28.5]} 28... Ng6 {[%clk 0:01:41.1]} 29. a4
{[%clk 0:01:24.3]} 29... Nh4 {[%clk 0:01:40.8]} 30. Rc3 {[%clk 0:01:21.9]} 30...
Nf6 {[%clk 0:01:37.1]} 31. Nb6 {[%clk 0:01:18.4]} 31... Rg7 {[%clk 0:01:33.6]}
32. N2c4 {[%clk 0:01:05]} 32... Ne8 {[%clk 0:01:25.7]} 33. Nc8 {[%clk
0:00:52.7]} 33... Rc7 {[%clk 0:01:22.6]} 34. N8b6 {[%clk 0:00:47.4]} 34... Rg8
{[%clk 0:01:17.9]} 35. Rg1 {[%clk 0:00:38.2]} 35... Rcg7 {[%clk 0:01:13.3]} 36.
Rxg7 {[%clk 0:00:37.2]} 36... Rxg7 {[%clk 0:01:13.8]} 37. Nc8 {[%clk 0:00:29]}
37... Rc7 {[%clk 0:01:10.8]} 38. N8b6 {[%clk 0:00:28.8]} 38... Rg7 {[%clk
0:01:07.9]} 39. Nc8 {[%clk 0:00:28.7]} 39... Rc7 {[%clk 0:01:07.3]} 40. N8b6
{[%clk 0:00:28.9]} 40... Rg7 {[%clk 0:01:07.4]} 1/2-1/2

[Event "Early-Titled-Tuesday-Blitz-May-28-2024"]
[Site "Chess.com"]
[Date "2024.05.28"]
[Round "6"]
[White "manitodeplomo"]
[Black "unbreakablepawn35"]
[Result "1-0"]
[WhiteElo "2560"]
[BlackElo "2383"]
[TimeControl "180+1"]
[EndTime "9:06:17 PDT"]
[Termination "manitodeplomo won by resignation"]

1. d4 {[%clk 0:03:00.9]} 1... Nf6 {[%clk 0:03:00]} 2. c4 {[%clk 0:03:00.5]} 2...
g6 {[%clk 0:03:00.2]} 3. Nc3 {[%clk 0:02:59.4]} 3... Bg7 {[%clk 0:02:59.3]} 4.
e4 {[%clk 0:02:59.4]} 4... d6 {[%clk 0:02:59.5]} 5. Be2 {[%clk 0:02:59.1]} 5...
O-O {[%clk 0:02:59.9]} 6. Nf3 {[%clk 0:02:57.3]} 6... e5 {[%clk 0:03:00.1]} 7.
d5 {[%clk 0:02:57.3]} 7... Nbd7 {[%clk 0:02:59.6]} 8. Be3 {[%clk 0:02:55.3]}
8... a5 {[%clk 0:02:59.5]} 9. Nd2 {[%clk 0:02:54.7]} 9... Nc5 {[%clk 0:02:55.8]}
10. O-O {[%clk 0:02:53.4]} 10... Ne8 {[%clk 0:02:54.3]} 11. a3 {[%clk
0:02:46.9]} 11... f5 {[%clk 0:02:42.5]} 12. f3 {[%clk 0:02:42]} 12... f4 {[%clk
0:02:37.1]} 13. Bf2 {[%clk 0:02:41.2]} 13... g5 {[%clk 0:02:27.1]} 14. b4 {[%clk
0:02:38.8]} 14... Nd7 {[%clk 0:02:20.2]} 15. c5 {[%clk 0:02:37.7]} 15... h5
{[%clk 0:02:17.6]} 16. Nc4 {[%clk 0:02:32.3]} 16... b6 {[%clk 0:02:04.3]} 17.
cxb6 {[%clk 0:01:20.3]} 17... Nxb6 {[%clk 0:01:37]} 18. Nxa5 {[%clk 0:01:11.2]}
18... Qf6 {[%clk 0:01:36.4]} 19. Bxb6 {[%clk 0:01:00]} 19... cxb6 {[%clk
0:01:35.6]} 20. Nc4 {[%clk 0:00:59.6]} 20... Rb8 {[%clk 0:01:27.9]} 21. a4
{[%clk 0:00:57.5]} 21... Qg6 {[%clk 0:01:26.1]} 22. a5 {[%clk 0:00:56.8]} 22...
bxa5 {[%clk 0:01:13.2]} 23. bxa5 {[%clk 0:00:57.7]} 23... g4 {[%clk 0:01:12.4]}
24. a6 {[%clk 0:00:47.9]} 24... g3 {[%clk 0:00:54.3]} 25. h3 {[%clk 0:00:36]}
25... Qg5 {[%clk 0:00:45.9]} 26. a7 {[%clk 0:00:29.2]} 26... Ra8 {[%clk
0:00:38.6]} 27. Nb6 {[%clk 0:00:28]} 27... Qh4 {[%clk 0:00:34]} 28. Nxc8 {[%clk
0:00:24.7]} 1-0

[Event "Early-Titled-Tuesday-Blitz-May-28-2024"]
[Site "Chess.com"]
[Date "2024.05.28"]
[Round "6"]
[White "Masterbeaterr"]
[Black "kachsona"]
[Result "1-0"]
[WhiteElo "2485"]
[BlackElo "2627"]
[TimeControl "180+1"]
[EndTime "9:06:19 PDT"]
[Termination "Masterbeaterr won on time"]

1. d4 {[%clk 0:03:00.9]} 1... d5 {[%clk 0:02:59.5]} 2. c4 {[%clk 0:03:00.6]}
2... e6 {[%clk 0:02:59.4]} 3. Nc3 {[%clk 0:02:59.8]} 3... Nf6 {[%clk 0:02:57.1]}
4. Nf3 {[%clk 0:02:57.7]} 4... Bb4 {[%clk 0:02:56.4]} 5. e3 {[%clk 0:02:57.8]}
5... O-O {[%clk 0:02:52.1]} 6. Bd2 {[%clk 0:02:58.3]} 6... Nbd7 {[%clk
0:02:41.9]} 7. cxd5 {[%clk 0:02:58]} 7... exd5 {[%clk 0:02:40.1]} 8. Rc1 {[%clk
0:02:58.2]} 8... c6 {[%clk 0:02:38.8]} 9. g3 {[%clk 0:02:58.3]} 9... Re8 {[%clk
0:02:37.9]} 10. Bg2 {[%clk 0:02:57.9]} 10... Nf8 {[%clk 0:02:37.4]} 11. O-O
{[%clk 0:02:57.6]} 11... Bf5 {[%clk 0:02:34]} 12. Qb3 {[%clk 0:02:52.4]} 12...
a5 {[%clk 0:02:33.3]} 13. a3 {[%clk 0:02:52.4]} 13... Bd6 {[%clk 0:02:15.4]} 14.
Qxb7 {[%clk 0:02:49.8]} 14... Rb8 {[%clk 0:02:13.7]} 15. Qxc6 {[%clk 0:02:49.6]}
15... Rxb2 {[%clk 0:02:12.8]} 16. Nxd5 {[%clk 0:02:39.8]} 16... Ne4 {[%clk
0:01:07.1]} 17. Bc3 {[%clk 0:02:27.7]} 17... Bd7 {[%clk 0:01:00.6]} 18. Qa6
{[%clk 0:02:27.3]} 18... Nxc3 {[%clk 0:00:44.3]} 19. Nxc3 {[%clk 0:02:18.7]}
19... Bxa3 {[%clk 0:00:38.3]} 20. Qa7 {[%clk 0:02:09.7]} 20... Bd6 {[%clk
0:00:23.3]} 21. Rb1 {[%clk 0:02:05.1]} 21... Rc2 {[%clk 0:00:20.8]} 22. Rfc1
{[%clk 0:02:04.2]} 22... Rxc1+ {[%clk 0:00:19.6]} 23. Rxc1 {[%clk 0:02:05.1]}
23... Qa8 {[%clk 0:00:13.6]} 24. Qxa8 {[%clk 0:02:01.9]} 24... Rxa8 {[%clk
0:00:14.5]} 25. Ne5 {[%clk 0:02:01.9]} 25... Rc8 {[%clk 0:00:12.3]} 26. Nxd7
{[%clk 0:02:00.3]} 26... Nxd7 {[%clk 0:00:13.2]} 27. Bh3 {[%clk 0:01:59.5]}
27... Bb4 {[%clk 0:00:09.5]} 28. Na2 {[%clk 0:01:52.4]} 28... Rxc1+ {[%clk
0:00:09.2]} 29. Nxc1 {[%clk 0:01:53.3]} 29... Nb6 {[%clk 0:00:09.3]} 30. Na2
{[%clk 0:01:51]} 30... Bd6 {[%clk 0:00:07]} 31. Kf1 {[%clk 0:01:50.3]} 31... a4
{[%clk 0:00:06.9]} 32. Ke2 {[%clk 0:01:50.7]} 32... a3 {[%clk 0:00:05.8]} 33.
Kd3 {[%clk 0:01:51.2]} 33... Nd5 {[%clk 0:00:04.7]} 34. Kc4 {[%clk 0:01:50.2]}
34... Nf6 {[%clk 0:00:04.7]} 35. f3 {[%clk 0:01:46.7]} 35... Kf8 {[%clk
0:00:01.7]} 36. Bf1 {[%clk 0:01:45.3]} 36... h5 {[%clk 0:00:01]} 37. e4 {[%clk
0:01:43.8]} 37... Be7 {[%clk 0:00:01.3]} 38. e5 {[%clk 0:01:39.7]} 38... Nd7
{[%clk 0:00:01.4]} 39. f4 {[%clk 0:01:37.7]} 39... Nb6+ {[%clk 0:00:01.3]} 40.
Kb5 {[%clk 0:01:32.1]} 40... Nd5 {[%clk 0:00:01.2]} 41. Bc4 {[%clk 0:01:29.6]}
41... Ne3 {[%clk 0:00:01]} 42. d5 {[%clk 0:01:28.3]} 1-0

[Event "Early-Titled-Tuesday-Blitz-May-28-2024"]
[Site "Chess.com"]
[Date "2024.05.28"]
[Round "6"]
[White "The_Machine04"]
[Black "AlbusSevresPotter"]
[Result "1-0"]
[WhiteElo "2800"]
[BlackElo "2551"]
[TimeControl "180+1"]
[EndTime "9:06:21 PDT"]
[Termination "The_Machine04 won by resignation"]

1. d4 {[%clk 0:03:00.9]} 1... Nf6 {[%clk 0:02:59.1]} 2. Nf3 {[%clk 0:03:01.3]}
2... e6 {[%clk 0:02:59.1]} 3. e3 {[%clk 0:03:01.8]} 3... b6 {[%clk 0:02:38.1]}
4. Nbd2 {[%clk 0:03:02.7]} 4... c5 {[%clk 0:02:37.1]} 5. Bd3 {[%clk 0:03:03.6]}
5... Bb7 {[%clk 0:02:36.7]} 6. O-O {[%clk 0:03:03.5]} 6... Be7 {[%clk
0:02:36.7]} 7. c3 {[%clk 0:03:03.4]} 7... O-O {[%clk 0:02:35.3]} 8. Qe2 {[%clk
0:03:03.3]} 8... d5 {[%clk 0:02:28.9]} 9. Ne5 {[%clk 0:03:03.3]} 9... Nfd7
{[%clk 0:01:53.8]} 10. f4 {[%clk 0:03:00.6]} 10... f6 {[%clk 0:01:53.9]} 11. Qh5
{[%clk 0:02:59.1]} 11... f5 {[%clk 0:01:40.1]} 12. Ndf3 {[%clk 0:02:58.1]} 12...
Qe8 {[%clk 0:01:36.9]} 13. Qh3 {[%clk 0:02:57.4]} 13... Nf6 {[%clk 0:01:28.6]}
14. g4 {[%clk 0:02:55.6]} 14... g6 {[%clk 0:01:26.1]} 15. Bd2 {[%clk 0:02:48.1]}
15... Nc6 {[%clk 0:01:20.9]} 16. Be1 {[%clk 0:02:47.7]} 16... Ne4 {[%clk
0:00:45.8]} 17. gxf5 {[%clk 0:02:41.7]} 17... exf5 {[%clk 0:00:41.9]} 18. Kh1
{[%clk 0:02:41.5]} 18... Bf6 {[%clk 0:00:30]} 19. Rg1 {[%clk 0:02:41.6]} 19...
Ne7 {[%clk 0:00:30.6]} 20. Rg2 {[%clk 0:02:28.4]} 20... a5 {[%clk 0:00:25.2]}
21. Bh4 {[%clk 0:02:23.7]} 21... Ba6 {[%clk 0:00:21.5]} 22. Bxf6 {[%clk
0:02:04.6]} 22... Rxf6 {[%clk 0:00:16.1]} 23. Bxe4 {[%clk 0:02:03]} 23... fxe4
{[%clk 0:00:13.7]} 24. Ng5 {[%clk 0:02:03.3]} 24... h5 {[%clk 0:00:11.2]} 25.
Rag1 {[%clk 0:01:41.5]} 25... Bc8 {[%clk 0:00:10.6]} 26. Qh4 {[%clk 0:01:42]}
26... Nf5 {[%clk 0:00:09.8]} 27. Qf2 {[%clk 0:01:42.5]} 27... Ra7 {[%clk
0:00:04.6]} 28. Nh3 {[%clk 0:01:42.3]} 28... Rg7 {[%clk 0:00:04.3]} 29. Rg5
{[%clk 0:01:35]} 29... Nh6 {[%clk 0:00:04.2]} 30. Qg2 {[%clk 0:01:25.4]} 30...
Ng4 {[%clk 0:00:03.7]} 31. Qg3 {[%clk 0:01:21.5]} 31... cxd4 {[%clk 0:00:02.9]}
32. cxd4 {[%clk 0:01:21.5]} 32... Bf5 {[%clk 0:00:03.3]} 33. Nf2 {[%clk
0:01:19.4]} 33... Nh6 {[%clk 0:00:02.5]} 34. Rxh5 {[%clk 0:01:14.7]} 34... Be6
{[%clk 0:00:01.2]} 35. Rxh6 {[%clk 0:01:14.5]} 1-0